[Event "FRA-ch Teams Top 16-A 2022"]
[Site "Chartres"]
[Date "2022.06.11"]
[Round "3.27"]
[White "Korobov, Anton"]
[Black "Postny, Evgeny"]
[Result "1-0"]
[ECO "D58"]
[WhiteElo "2671"]
[BlackElo "2563"]
[Annotator "TA"]
[PlyCount "89"]
[EventDate "2022.06.09"]
[EventType "team-tourn"]
[EventCountry "FRA"]
[SourceTitle "playchess.com"]
[Source "ChessBase"]
[SourceQuality "1"]
[TimeControl "40/5400+30:1800+30"]

{[%evp 19,89,8,28,35,55,53,52,44,44,48,72,78,91,94,89,92,92,95,84,86,93,95,102,96,98,93,102,95,86,61,73,66,63,33,95,108,105,100,137,129,147,117,174,170,170,177,154,166,235,231,249,239,267,78,287,280,533,527,670,382,660,588,499,264,1600,1139,29982,29983,29983,29984,29987,29988]} 1. d4 {[%emt 0:00:04]} d5 {[%emt 0:00:09]} 2. Nf3 {[%emt 0:00:09]} Nf6 {[%emt 0:00:08]} 3. c4 {[%emt 0:00:07]} e6 {[%emt 0:00:20]} 4. Nc3 {[%emt 0:00:20]} Be7 {[%emt 0:00:07]} 5. Bg5 {[%emt 0:00:28]} h6 {[%emt 0:00:15]} 6. Bh4 {[%emt 0:00:25]} O-O {[%emt 0:00:09]} 7. e3 {[%emt 0:00:14]} b6 {[%emt 0:00:15]} 8. Be2 {[%emt 0:00:40]} dxc4 {[%emt 0:01:50]} 9. Bxc4 {[%emt 0:01:06]} Bb7 {[%emt 0:00:18]} 10. O-O {[%emt 0:00:29]} Ne4 {[%emt 0:07:05]} 11. Nxe4 {[%emt 0:04:32] Black must now prevent Bxe7. D58: Queen's Gambit Declined: Tartakower Defence.} Bxe4 {[%emt 0:02:33]} 12. Bg3 {[%emt 0:03:32]} Bd6 {[%emt 0:18:33]} 13. Rc1 {[%emt 0:02:24] White is slightly better.} Nd7 {[%emt 0:09:10]} 14. Bb5 {[%emt 0:06:58]} Bxg3 {[%emt 0:10:27]} 15. hxg3 {[%emt 0:00:47] [#]} c5 $146 {[%emt 0:00:41]} ({Predecessor:} 15... Nf6 16. Bc6 Bxc6 17. Rxc6 Nd5 18. Rc4 Qd6 19. Qc2 Nb4 20. Qb3 Nc6 21. Qc2 Nb4 {1-0 (21) Pech,J-Milde,L DESC email 2010}) 16. Qa4 {[%emt 0:07:38]} Nf6 {[%emt 0:00:15][%cal Oa7a6]} 17. dxc5 {[%emt 0:02:24]} bxc5 {[%emt 0:00:22]} 18. Rxc5 {[%emt 0:06:08]} Qb6 {[%emt 0:00:26]} 19. Qa3 {[%emt 0:01:20]} Bd5 {[%emt 0:18:30]} 20. Be2 {[%emt 0:06:05]} Rfc8 {[%emt 0:03:09]} 21. Rfc1 {[%emt 0:01:48]} Rxc5 {[%emt 0:00:06]} 22. Rxc5 {[%emt 0:00:21]} Ne4 {[%emt 0:00:14]} 23. Rc2 {[%emt 0:00:52]} a5 {[%emt 0:01:38]} 24. b3 {[%emt 0:09:12]} Qb4 {[%emt 0:04:24]} 25. Qc1 {[%emt 0:02:01]} a4 $1 {[%emt 0:01:20]} 26. bxa4 {[%emt 0:03:01]} Qxa4 {[%emt 0:11:25] [#]} (26... Rxa4 $14 27. Rb2 Qc5) 27. Ne5 $1 $16 {[%emt 0:04:30]} Nd6 {[%emt 0:01:10] [#]} 28. Bf3 $1 {[%emt 0:01:48] Inhibits Qe4.} Bxf3 {[%emt 0:02:45]} 29. gxf3 {[%emt 0:00:25]} ({Much less strong is} 29. Nxf3 Qa5 $14) 29... f6 {[%emt 0:00:17]} 30. Nc6 {[%emt 0:02:29]} Nf5 {[%emt 0:03:08]} (30... Kh8 $16 31. Qd1 e5) 31. e4 {[%emt 0:02:36]} Nd6 {[%emt 0:00:28]} 32. e5 {[%emt 0:02:11]} fxe5 {[%emt 0:00:09]} 33. Nxe5 {[%emt 0:00:05]} Qd4 {[%emt 0:01:17]} (33... Qb5 $142) 34. Qe1 $18 {[%emt 0:04:04]} Nf5 {[%emt 0:01:57]} 35. Kg2 {[%emt 0:00:40]} Rf8 {[%emt 0:02:05]} 36. Qe4 $2 {[%emt 0:01:09]} (36. Rc7 $18) 36... Qd6 $2 {[%emt 0:00:45] Loses the game.} (36... Qxe4 $16 {was necessary.} 37. fxe4 Nd6) 37. a4 {[%emt 0:01:09][%cal Ba2a4,Ba4a5,Ba5a6][%mdl 32]} Ne7 $2 {[%emt 0:00:22]} (37... Qd5 38. Qxd5 exd5) 38. a5 {[%emt 0:00:53]} Qa6 {[%emt 0:00:22]} 39. Rc5 {[%emt 0:05:58] aiming for Rc7.} Nd5 $2 {[%emt 0:00:42]} (39... Re8 40. Nc4 Rd8) 40. Nc6 {[%emt 0:01:12]} Rf6 {[%emt 0:00:40]} 41. Qc4 {[%emt 0:36:56]} (41. Nd4 $142) 41... Qb7 $2 {[%emt 0:02:01]} (41... Qxc4 42. Rxc4 Rf8) 42. a6 {[%emt 0:00:00]} Qb2 {[%emt 0:00:20]} 43. Rxd5 {[%emt 0:00:00] White mates.} exd5 {[%emt 0:00:11]} 44. Qxd5+ {[%emt 0:00:00]} Kh7 {[%emt 0:00:58]} 45. Ne7 {[%emt 0:00:00] Weighted Error Value: White=0.36/Black=0.65} 1-0

[Event "FRA-ch Teams Top 16-A 2022"]
[Site "Chartres"]
[Date "2022.06.11"]
[Round "3.28"]
[White "Migot, Tangi"]
[Black "David, Alberto"]
[Result "0-1"]
[ECO "E14"]
[WhiteElo "2353"]
[BlackElo "2520"]
[Annotator "TA"]
[PlyCount "132"]
[EventDate "2022.06.09"]
[EventType "team-tourn"]
[EventCountry "FRA"]
[SourceTitle "playchess.com"]
[Source "ChessBase"]
[SourceQuality "1"]
[TimeControl "40/5400+30:1800+30"]

{[%evp 12,132,29,5,5,0,14,8,25,-15,-18,-6,-5,-9,-20,-19,-16,-20,-8,-11,-10,-20,-7,-64,-22,-54,-63,-64,-41,-54,-67,-63,-59,-60,-65,-64,-68,-79,-66,-62,-43,-64,-47,-45,-52,-42,-45,-47,-40,-41,-35,-62,-59,-72,-72,-72,-72,-85,-85,-85,-85,-85,-85,-79,-72,-72,-73,-178,-114,-180,-187,-172,-164,-222,-214,-216,-186,-216,-211,-199,-208,-192,-164,-231,-222,-243,-214,-411,-396,-402,-390,-395,-347,-545,-528,-492,-464,-533,-517,-487,-466,-747,-737,-705,-687,-646,-637,-959,-922,-1050,-923,-1100,-897,-896,-875,-858,-851,-1152,-1083,-1287,-1187,-5189,-2448]} 1. d4 {[%emt 0:00:03]} Nf6 {[%emt 0:01:04]} 2. Nf3 {[%emt 0:00:11]} b6 {[%emt 0:01:37]} 3. e3 {[%emt 0:00:41]} e6 {[%emt 0:05:06]} 4. Bd3 {[%emt 0:00:40]} Bb7 {[%emt 0:01:15]} 5. O-O {[%emt 0:00:13]} Be7 {[%emt 0:01:23]} 6. c4 {[%emt 0:02:34]} O-O {[%emt 0:01:11]} 7. b3 {[%emt 0:03:12]} c5 {[%emt 0:01:29] E14: Queen's Indian: Classical Variation (4 e3).} 8. dxc5 {[%emt 0:04:09]} bxc5 {[%emt 0:02:20]} 9. Bb2 {[%emt 0:00:19]} d6 {[%emt 0:00:28] The position is equal.} 10. Nbd2 {[%emt 0:05:07]} Nbd7 {[%emt 0:06:24]} 11. Qc2 {[%emt 0:02:44]} h6 {[%emt 0:01:25] [#]} 12. Ne4 $146 {[%emt 0:23:02]} ({Predecessor:} 12. Rfe1 Qc7 13. Rad1 Rfb8 14. e4 e5 15. Nf1 Nf8 16. Ne3 g6 17. Nd5 Qd8 18. Nxf6+ Bxf6 {0-1 (41) Oberbarnscheidt,L (2032)-Happe,U (2105) Germany 2018}) 12... Nxe4 {[%emt 0:04:58]} 13. Bxe4 {[%emt 0:00:09]} Bxe4 {[%emt 0:00:08]} 14. Qxe4 {[%emt 0:00:04]} a5 {[%emt 0:00:05]} 15. Rfd1 {[%emt 0:07:12]} a4 {[%emt 0:02:10]} 16. Nd2 {[%emt 0:07:54]} Ra6 {[%emt 0:02:58]} 17. Qb7 {[%emt 0:08:04]} ({Much weaker is} 17. Qg4 Bf6 18. Bxf6 Nxf6 $15) (17. Qc2 $11) 17... Qc8 {[%emt 0:02:40]} 18. Qxc8 {[%emt 0:02:54]} (18. Qe4 {with more complications.} Qa8 19. Qd3 Ne5 20. Qc2) 18... Rxc8 {[%emt 0:00:04]} 19. Kf1 {[%emt 0:00:05]} Rb8 {[%emt 0:04:09]} 20. Ke2 {[%emt 0:01:35]} f5 {[%emt 0:02:26]} 21. Bc3 {[%emt 0:02:52]} Bf6 {[%emt 0:02:41]} 22. Bxf6 {[%emt 0:01:34]} Nxf6 {[%emt 0:00:05]} 23. f3 {[%emt 0:01:42]} Kf7 {[%emt 0:06:27]} 24. Rdb1 {[%emt 0:02:19]} Ke7 {[%emt 0:02:17]} 25. Kd3 {[%emt 0:02:05]} Nd7 {[%emt 0:15:39] Black is more active.} 26. Kc3 {[%emt 0:03:22]} axb3 {[%emt 0:01:03]} 27. axb3 {[%emt 0:02:00]} Rba8 {[%emt 0:00:50]} 28. Rxa6 {[%emt 0:05:54]} Rxa6 $15 {[%emt 0:00:05][%mdl 4096] Endgame KRN-KRN} 29. f4 {[%emt 0:00:06]} g5 {[%emt 0:04:22]} 30. g3 {[%emt 0:09:35]} Nf6 {[%emt 0:00:39]} 31. Kb2 {[%emt 0:02:33]} Ng4 {[%emt 0:00:47][%csl LRe3,LRh2]} 32. Nf3 {[%emt 0:00:53]} Kf6 {[%emt 0:01:41]} 33. Re1 {[%emt 0:00:32]} Nf2 {[%emt 0:00:04]} 34. Re2 {[%emt 0:00:33] [#]} Nd3+ {[%emt 0:00:10]} 35. Kc3 {[%emt 0:00:29]} Nb4 {[%emt 0:00:04]} 36. Ne1 {[%emt 0:00:32]} e5 {[%emt 0:08:03]} 37. Nd3 {[%emt 0:00:22]} Na2+ {[%emt 0:00:13]} 38. Kb2 {[%emt 0:00:14] Black must now prevent fxe5+.} e4 {[%emt 0:00:30]} 39. Nf2 {[%emt 0:00:46]} (39. Nc1 $17 Nb4 40. Kc3) 39... Nb4 {[%emt 0:00:04]} ({Black should play} 39... gxf4 $19 40. gxf4 Nb4) 40. Rd2 {[%emt 0:00:43]} (40. fxg5+ $17 {might work better.} hxg5 41. Kc3) 40... gxf4 $19 {[%emt 0:06:40]} 41. gxf4 {[%emt 0:01:40] [#]} Ke6 $1 {[%emt 0:00:27]} 42. Kb1 {[%emt 0:02:47]} (42. Nd1 $142) 42... Ra3 {[%emt 0:07:20]} 43. Kb2 {[%emt 0:01:30]} Ra2+ {[%emt 0:05:13]} 44. Kc3 {[%emt 0:01:25]} Ra1 {[%emt 0:00:28]} 45. Rd1 {[%emt 0:04:37]} Ra7 {[%emt 0:01:29]} 46. Rd2 {[%emt 0:01:39]} Rg7 {[%emt 0:00:47]} 47. Nh3 {[%emt 0:03:08]} (47. Nh1 {was called for.}) 47... Rg8 {[%emt 0:02:40]} 48. Rd1 {[%emt 0:03:59]} Nd3 {[%emt 0:14:12]} 49. Rg1 $2 {[%emt 0:04:28]} (49. Rd2 {was the only chance.}) 49... Ra8 {[%emt 0:00:43] Hoping for ...Ra2.} 50. Rg2 {[%emt 0:05:17] Prevents Ra2.} Ra1 {[%emt 0:00:22]} 51. Re2 {[%emt 0:00:19]} Rf1 {[%emt 0:04:52] Against Nf2} 52. Kd2 {[%emt 0:00:44]} (52. Rg2 {is a better defense.} Rc1+ 53. Kd2) 52... Nc1 {[%emt 0:01:18] Black is clearly winning.} 53. Rg2 {[%emt 0:00:48]} Nxb3+ {[%emt 0:00:05]} 54. Kc3 {[%emt 0:00:39]} Na5 {[%emt 0:00:06]} 55. Rg6+ {[%emt 0:00:25]} Kd7 {[%emt 0:00:28]} 56. Rxh6 {[%emt 0:01:24]} (56. Rg7+ $142 Kc6 57. Rg1) 56... Rf3 {[%emt 0:00:21]} 57. Ng5 {[%emt 0:00:25]} Rxe3+ {[%emt 0:00:04]} 58. Kc2 {[%emt 0:00:41]} Nxc4 {[%emt 0:00:05]} 59. h4 {[%emt 0:00:16]} Re2+ {[%emt 0:01:20]} 60. Kc3 {[%emt 0:00:25]} Ne3 {[%emt 0:01:51] Threatens to win with ...Nd1+.} 61. h5 {[%emt 0:02:59]} Nd5+ {[%emt 0:01:09]} 62. Kb3 {[%emt 0:00:55]} Nxf4 {[%emt 0:00:50]} 63. Rh7+ {[%emt 0:00:16]} Kc6 {[%emt 0:00:05]} 64. h6 {[%emt 0:00:03]} Rh2 {[%emt 0:00:52]} 65. Rf7 {[%emt 0:01:39]} Rxh6 {[%emt 0:00:27]} 66. Rxf5 {[%emt 0:00:04]} Ne6 {[%emt 0:00:30] Weighted Error Value: White=0.33/Black=0.09 (flawless)} 0-1

[Event "FRA-ch Teams Top 16-A 2022"]
[Site "Chartres"]
[Date "2022.06.11"]
[Round "3.29"]
[White "Fedorchuk, Sergey A."]
[Black "Pucher, Olivier"]
[Result "1-0"]
[ECO "B08"]
[WhiteElo "2606"]
[BlackElo "2341"]
[Annotator "TA"]
[PlyCount "53"]
[EventDate "2022.06.09"]
[EventType "team-tourn"]
[EventCountry "FRA"]
[SourceTitle "playchess.com"]
[Source "ChessBase"]
[SourceQuality "1"]
[TimeControl "40/5400+30:1800+30"]

{[%evp 16,53,11,0,8,6,12,-13,0,-29,0,0,0,0,0,10,31,30,120,126,112,114,139,131,145,143,134,136,183,181,167,181,181,178,709,702,725,689,679,658]} 1. e4 {[%emt 0:00:04]} d6 {[%emt 0:00:05]} 2. d4 {[%emt 0:00:16]} Nf6 {[%emt 0:00:07]} 3. Nc3 {[%emt 0:00:48]} g6 {[%emt 0:00:08]} 4. Be3 {[%emt 0:05:47]} c6 {[%emt 0:02:04]} 5. h3 {[%emt 0:05:28]} Bg7 {[%emt 0:01:29]} 6. Qd2 {[%emt 0:05:01]} O-O {[%emt 0:04:14]} 7. Nf3 {[%emt 0:02:37]} Nbd7 {[%emt 0:00:48]} 8. Bd3 {[%emt 0:08:18]} e5 {[%emt 0:00:48]} 9. O-O {[%emt 0:00:09]} Re8 {[%emt 0:00:14] B08: Pirc Defence: Classical System.} 10. Rfe1 {[%emt 0:01:14]} b5 {[%emt 0:02:17]} 11. a3 {[%emt 0:15:52]} a6 {[%emt 0:04:47] [#] The position is equal.} 12. Bh6 $146 {[%emt 0:00:49]} ({Predecessor:} 12. dxe5 dxe5 13. Rad1 Qc7 14. Bg5 Nc5 15. Bf1 Ne6 16. Bh4 Bb7 17. Qe3 Nh5 18. g4 {0-1 (38) Mentel,J (1997)-Donchenko,A (2300) Bad Sooden-Allendorf 2009}) 12... Qb6 {[%emt 0:34:40]} 13. dxe5 {[%emt 0:10:29]} Nxe5 {[%emt 0:18:55]} 14. Be2 {[%emt 0:05:55]} Bb7 {[%emt 0:03:19]} 15. Rad1 {[%emt 0:07:25]} (15. Qxd6 Rad8 16. Be3 Nxf3+ 17. Bxf3 Qxe3 18. Rxe3 Rxd6 $17) 15... Rad8 {[%emt 0:07:14]} 16. Bg5 {[%emt 0:04:02]} d5 {[%emt 0:10:45]} (16... h5 $11) 17. Qf4 $16 {[%emt 0:05:45][%csl LRe5,LRf6]} Nxf3+ {[%emt 0:05:20]} 18. Bxf3 {[%emt 0:00:35]} ({Of course not} 18. gxf3 $6 Re6 $15) 18... d4 {[%emt 0:01:29]} (18... dxe4 $2 19. Rxd8 Qxd8 20. Nxe4 $18 (20. Rxe4 Rxe4 21. Nxe4 Nd5 $16)) 19. Bxf6 {[%emt 0:01:43]} Bxf6 {[%emt 0:00:14]} 20. Qxf6 {[%emt 0:00:08]} dxc3 {[%emt 0:00:32]} 21. bxc3 {[%emt 0:00:20]} ({Don't play} 21. Qxc3 Rxd1 22. Rxd1 c5 $16) 21... Bc8 {[%emt 0:00:57]} (21... Qc7 $16 {was worth a try.}) 22. e5 $18 {[%emt 0:00:50][%cal Be4e5,Be5d6,Bd6d7][%mdl 32]} Be6 {[%emt 0:00:10]} 23. Rd6 {[%emt 0:00:28]} Rxd6 {[%emt 0:00:37]} 24. exd6 $40 {[%emt 0:00:05][%mdl 128] [#] Strongly threatening Bg4. White has strong attack.} c5 $2 {[%emt 0:00:19]} (24... Qd8 25. Qd4 Bd7) 25. d7 {[%emt 0:01:15][%cal Rd7e8] White is clearly winning.} Rf8 {[%emt 0:00:47]} 26. Bg4 {[%emt 0:00:40][%cal Re1e6]} Qd8 {[%emt 0:00:40]} 27. Rxe6 {[%emt 0:17:57] Weighted Error Value: White=0.04 (flawless) /Black=0.26 (precise)} 1-0

[Event "FRA-ch Teams Top 16-A 2022"]
[Site "Chartres"]
[Date "2022.06.11"]
[Round "3.31"]
[White "Guilleux, Fabien"]
[Black "Fardet, Elouan"]
[Result "1-0"]
[ECO "E63"]
[WhiteElo "2382"]
[BlackElo "2180"]
[Annotator "TA"]
[PlyCount "107"]
[EventDate "2022.06.09"]
[EventType "team-tourn"]
[EventCountry "FRA"]
[SourceTitle "playchess.com"]
[Source "ChessBase"]
[SourceQuality "1"]
[TimeControl "40/5400+30:1800+30"]

{[%evp 20,107,31,26,30,17,33,31,50,48,35,48,75,0,0,0,0,0,0,0,0,0,0,0,10,8,25,0,0,0,0,-13,114,126,105,97,95,114,106,114,161,145,292,286,283,304,291,293,277,264,500,497,758,170,164,146,162,165,167,162,211,202,230,179,243,179,261,210,213,209,295,224,285,274,265,213,448,448,416,422,418,435,406,424,391,352,1858,1912,2012,1114]} 1. Nf3 {[%emt 0:00:06]} Nf6 {[%emt 0:00:06]} 2. g3 {[%emt 0:00:11]} g6 {[%emt 0:00:03]} 3. Bg2 {[%emt 0:00:12]} Bg7 {[%emt 0:00:04]} 4. O-O {[%emt 0:00:14]} O-O {[%emt 0:00:03]} 5. c4 {[%emt 0:00:20]} d6 {[%emt 0:00:12]} 6. d4 {[%emt 0:00:40]} Nc6 {[%emt 0:00:06]} 7. Nc3 {[%emt 0:01:06]} a6 {[%emt 0:00:07]} 8. d5 {[%emt 0:01:25]} Na5 {[%emt 0:00:05]} 9. b3 {[%emt 0:00:44]} c5 {[%emt 0:02:13]} 10. dxc6 {[%emt 0:01:22]} Nxc6 {[%emt 0:00:49]} 11. Bb2 {[%emt 0:00:31]} Qa5 {[%emt 0:02:15][%cal Of6e4] E63: King's Indian: Fianchetto: Panno Variation with 7...a6.} 12. Rc1 {[%emt 0:32:36]} (12. Nd5 {looks sharper.} Nxd5 13. Bxg7 Nc3 14. Bxc3 Qxc3 15. e3) 12... Qh5 {[%emt 0:07:19] [#]} 13. h4 $146 {[%emt 0:11:07]} (13. Qd2 {with more complications.} Bh3 14. Bxh3 Qxh3 15. Ng5) ({Predecessor:} 13. Qd2 Bh3 14. Bxh3 Qxh3 15. Nd5 Ng4 16. Bxg7 Kxg7 17. Nf4 Qh6 18. h3 Nge5 19. Qc3 {½-½ (68) Krykun,Y (2372)-Gbyl,A (2243) Krakow 2017}) 13... Bh6 {[%emt 0:17:01] White is slightly better.} 14. e3 {[%emt 0:04:44]} Bg7 {[%emt 0:12:21]} 15. Qd2 {[%emt 0:10:35]} Bf5 {[%emt 0:07:30]} 16. Nd5 {[%emt 0:03:52]} ({White should try} 16. Nh2 $16) 16... Ne4 $11 {[%emt 0:14:08]} 17. Qe2 {[%emt 0:00:47]} e5 $1 {[%emt 0:07:24]} 18. Qe1 {[%emt 0:14:57]} Nc5 $1 {[%emt 0:01:37]} 19. Qc3 {[%emt 0:00:08]} Nd3 {[%emt 0:02:49]} (19... Ne4 $5 20. Qe1 Nc5 $11) 20. Rc2 {[%emt 0:06:44]} Nxb2 {[%emt 0:00:53]} 21. Rxb2 {[%emt 0:00:01]} e4 {[%emt 0:00:22]} 22. Nd4 {[%emt 0:00:24]} Rae8 {[%emt 0:00:54]} 23. Rd2 {[%emt 0:00:36]} (23. Nf4 $5 {[%cal Rf4h5]} Qh6 24. a4 $11) 23... g5 {[%emt 0:03:08]} 24. hxg5 {[%emt 0:01:58]} Qxg5 {[%emt 0:02:18]} 25. Qc1 {[%emt 0:01:24]} Ne5 {[%emt 0:01:49]} (25... Nxd4 $11 {remains equal.} 26. exd4 Bh6) 26. Nxf5 $16 {[%emt 0:01:30]} Qxf5 {[%emt 0:00:45]} 27. Qc2 {[%emt 0:00:40]} Nf3+ {[%emt 0:07:13]} 28. Bxf3 {[%emt 0:00:02]} Qxf3 {[%emt 0:00:07]} 29. Qd1 {[%emt 0:00:15]} Qf5 {[%emt 0:01:13]} (29... Be5 $16) 30. Kg2 $18 {[%emt 0:00:16]} Re6 {[%emt 0:00:41] This move loses the game for Black.} (30... Kh8 $16 31. Rh1 Be5) 31. Rh1 {[%emt 0:00:09]} Be5 {[%emt 0:01:42]} 32. Rh5 {[%emt 0:03:38]} Qg6 {[%emt 0:00:07]} 33. Nf4 $1 {[%emt 0:00:36]} Bxf4 {[%emt 0:00:33]} 34. exf4 {[%emt 0:00:07][%cal Be3f4,Bf4f5][%mdl 32]} Qf6 {[%emt 0:00:11]} (34... e3) 35. f5 {[%emt 0:01:48]} e3 {[%emt 0:00:28]} (35... Ree8 $142 36. Rxd6 Qg7) 36. Re2 $2 {[%emt 0:01:25]} (36. fxe6 exd2 37. e7 (37. Qxd2 fxe6 38. Qe3 Kg7 $16) 37... Re8 38. Qxd2 (38. Qg4+ Kh8 $16) 38... Qxe7 $16) (36. Qg4+ Kh8 37. Rd1 (37. fxe6 exd2 38. Qe4 h6 $16)) 36... Re5 {[%emt 0:01:39]} 37. Rxe3 {[%emt 0:00:14]} Rxe3 {[%emt 0:00:05]} 38. fxe3 {[%emt 0:00:03][%mdl 4096] Endgame KQR-KQR} Re8 {[%emt 0:00:03]} 39. Qg4+ {[%emt 0:01:14]} Kh8 {[%emt 0:00:08]} (39... Kf8 $142) 40. Qd4 {[%emt 0:01:06]} Re5 {[%emt 0:01:13]} 41. g4 {[%emt 0:02:22]} Kg8 {[%emt 0:01:33]} (41... b5 $142 42. cxb5 axb5) 42. Qf4 {[%emt 0:10:32]} d5 {[%emt 0:01:12]} (42... b5 $142 43. cxb5 axb5) 43. cxd5 {[%emt 0:03:39]} Rxd5 {[%emt 0:00:09]} 44. Qh6 {[%emt 0:01:15]} Rd2+ {[%emt 0:01:13]} (44... Qxh6 $142 45. Rxh6 Rd2+ 46. Kf3 Rxa2) 45. Kf3 {[%emt 0:00:33]} Qxh6 {[%emt 0:01:30]} 46. Rxh6 {[%emt 0:00:03]} Rxa2 {[%emt 0:00:09] KR-KR} 47. Rb6 {[%emt 0:00:06]} Rb2 $2 {[%emt 0:00:30]} (47... a5 {was called for.} 48. g5 (48. Rxb7 f6 $16) 48... Kg7 49. Rxb7 Rb2) 48. f6 {[%emt 0:02:34]} (48. Rxb7 a5 49. Rb5 Kg7 $18) 48... h6 {[%emt 0:00:18]} 49. Rxb7 {[%emt 0:00:09]} a5 {[%emt 0:00:08] [#]} 50. Rb5 $1 {[%emt 0:00:38]} Kh7 {[%emt 0:00:58] [#]} 51. e4 $1 {[%emt 0:01:49][%cal Be3e4,Be4e5][%mdl 32] e5 is the strong threat.} Kg6 {[%emt 0:00:20]} 52. e5 {[%emt 0:00:09] Hoping for Rb8.} Rb1 $2 {[%emt 0:01:45]} (52... h5 53. gxh5+ (53. Rxa5 Rxb3+ 54. Kg2 hxg4 $11) 53... Kf5) 53. Rb8 {[%emt 0:01:35]} Kh7 {[%emt 0:00:14]} 54. Ke2 {[%emt 0:03:42] Weighted Error Value: White=0.24 (precise) /Black=0.37} 1-0

[Event "FRA-ch Teams Top 16-A 2022"]
[Site "Chartres"]
[Date "2022.06.11"]
[Round "3.32"]
[White "Rouzes, Sibylle-Anne"]
[Black "Alexieva, Silvia"]
[Result "0-1"]
[ECO "A47"]
[WhiteElo "1580"]
[BlackElo "2219"]
[Annotator "TA"]
[PlyCount "68"]
[EventDate "2022.06.09"]
[EventType "team-tourn"]
[EventCountry "FRA"]
[SourceTitle "playchess.com"]
[Source "ChessBase"]
[SourceQuality "1"]
[TimeControl "40/5400+30:1800+30"]

{[%evp 12,68,13,0,21,10,24,12,13,10,10,0,0,0,0,-6,12,-35,-12,-31,-26,-31,0,0,0,11,51,22,34,44,44,14,35,39,44,17,26,-168,-166,-158,-166,-165,-157,-142,-124,-130,-128,-133,-58,-231,-197,-299,-275,-396,-349,-364,-288,-343,-347]} 1. d4 {[%emt 0:00:06]} Nf6 {[%emt 0:00:31]} 2. Nf3 {[%emt 0:00:31]} e6 {[%emt 0:01:21]} 3. Bf4 {[%emt 0:01:14]} b6 {[%emt 0:02:18]} 4. h3 {[%emt 0:06:22]} Bb7 {[%emt 0:02:56]} 5. Nbd2 {[%emt 0:01:31]} Be7 {[%emt 0:06:37]} 6. e3 {[%emt 0:01:21]} c5 {[%emt 0:06:16]} 7. c3 {[%emt 0:03:16]} d6 {[%emt 0:04:32] A47: 1 d4 Nf6 2 Nf3 b6: Torre, London and Colle Systems.} 8. Bb5+ {[%emt 0:11:28]} Bc6 {[%emt 0:03:25]} 9. Bxc6+ {[%emt 0:03:25]} Nxc6 {[%emt 0:00:06] The position is equal.} 10. O-O {[%emt 0:02:09] [#]} O-O $146 {[%emt 0:00:05]} ({Predecessor:} 10... Qd7 11. Qc2 O-O 12. Rfd1 cxd4 13. exd4 Rac8 14. Qa4 Qb7 15. Re1 b5 16. Qd1 Rfd8 {0-1 (42) Massanet Miret,P (1730)-Vallbona Domingo,J (1866) Barcelona 2017}) 11. Qe2 {[%emt 0:05:24]} Qd7 {[%emt 0:05:05]} 12. Rfd1 {[%emt 0:15:31]} Qb7 {[%emt 0:04:47]} 13. a3 {[%emt 0:11:05]} b5 {[%emt 0:02:31]} 14. b3 {[%emt 0:01:14]} (14. e4 $11 {was preferrable.}) 14... cxd4 {[%emt 0:02:33]} (14... Nd5 $5 {[%cal Rd5c3]} 15. Rdc1 Nxf4 16. exf4 d5 $11) 15. cxd4 {[%emt 0:02:12]} Nd5 {[%emt 0:00:50] White must now prevent ...Nc3.} 16. Qd3 {[%emt 0:05:52] Inhibits Nc3.} Nxf4 {[%emt 0:07:49]} (16... b4 {feels hotter.} 17. Bg3 bxa3 18. Nc4 Ndb4) 17. exf4 {[%emt 0:00:19]} d5 {[%emt 0:00:03]} 18. f5 {[%emt 0:13:52]} Bf6 {[%emt 0:06:37]} 19. Nf1 {[%emt 0:03:27]} g6 {[%emt 0:12:30]} 20. fxe6 {[%emt 0:03:57]} fxe6 {[%emt 0:00:06]} 21. Ne3 {[%emt 0:02:15]} Qb6 {[%emt 0:00:11]} (21... Bg7 $5 {[%cal Rf8f3]}) 22. Ng4 {[%emt 0:01:10]} Bg7 {[%emt 0:00:07]} 23. Nge5 {[%emt 0:00:34]} Nxe5 {[%emt 0:01:42]} 24. Nxe5 {[%emt 0:01:32]} (24. dxe5 $11 Rf4 25. Ra2) 24... Bxe5 $19 {[%emt 0:01:31]} 25. dxe5 {[%emt 0:01:42]} Rxf2 {[%emt 0:00:35] [#] Threatens to win with ...Rd2+.} ({And not} 25... Qxf2+ 26. Kh1 $17) 26. Kh1 {[%emt 0:00:14]} Raf8 {[%emt 0:00:25]} 27. Rf1 {[%emt 0:01:45]} a6 {[%emt 0:01:05]} 28. Rxf2 {[%emt 0:00:27]} Qxf2 $17 {[%emt 0:00:21][%mdl 4096] Endgame KQR-KQR} 29. Qc3 {[%emt 0:00:32]} Kg7 {[%emt 0:02:44] Black is more active.} (29... Qb6 $17 30. Rc1 a5) 30. Rc1 $2 {[%emt 0:00:30]} (30. Qc6 $1 $15) 30... Rf5 {[%emt 0:02:27]} 31. Qc7+ {[%emt 0:00:32] [#]} (31. Qc8 $142) 31... Kh6 $1 $19 {[%emt 0:00:25]} 32. Qc3 {[%emt 0:00:28]} (32. Qd6 {might work better.} Qe3 33. Rb1) 32... Rg5 {[%emt 0:04:24][%csl Gg5][%cal Rf2g2]} 33. Rg1 {[%emt 0:00:30]} Rg3 {[%emt 0:00:40]} 34. Qc1+ {[%emt 0:00:32]} Qe3 {[%emt 0:00:34] Weighted Error Value: White=0.38/Black=0.16 (very precise)} 0-1